bitfinex/quotes_BTCUSD_20251019
["timestamp","ask_amount","ask_price","bid_price","bid_amount"]
[1760896224003,3.8760563,109270.0,109260.0,0.00273885]
[1760896224355,4.73987502,109270.0,109260.0,0.00273885]
[1760896225649,5.180349,109270.0,109260.0,0.00273885]
[1760896226002,4.77219441,109270.0,109260.0,0.00273885]
[1760896227604,4.77219441,109270.0,109260.0,0.00173885]
[1760896228137,5.20410377,109270.0,109260.0,0.00173885]
[1760896230662,5.20510377,109270.0,109260.0,0.00173885]
[1760896232272,5.20512289,109270.0,109260.0,0.00173885]
[1760896232482,5.29952931,109270.0,109260.0,0.00173885]
[1760896233703,6.60525738,109270.0,109260.0,1e-08]
[1760896233904,6.60525738,109270.0,109250.0,4.943e-05]
[1760896233905,3.63333389,109260.0,109250.0,4.943e-05]
[1760896234117,6.34490917,109260.0,109250.0,4.943e-05]
[1760896234310,6.25304819,109260.0,109250.0,4.943e-05]
[1760896234570,6.23462091,109260.0,109250.0,4.943e-05]
[1760896235715,3.52975835,109260.0,109250.0,4.943e-05]
[1760896236112,4.91017917,109260.0,109250.0,4.943e-05]
[1760896236434,4.60356806,109260.0,109250.0,4.943e-05]
[1760896236639,4.71860806,109260.0,109250.0,4.943e-05]
[1760896236859,5.06060806,109260.0,109250.0,4.943e-05]
[1760896237048,4.66488098,109260.0,109250.0,4.943e-05]
[1760896237272,4.66288098,109260.0,109250.0,4.943e-05]
[1760896237488,5.09479034,109260.0,109250.0,4.943e-05]
[1760896237670,4.66388098,109260.0,109250.0,4.943e-05]
[1760896237865,4.54784098,109260.0,109250.0,4.943e-05]
[1760896238071,4.66288098,109260.0,109250.0,4.943e-05]
[1760896238290,4.66388098,109260.0,109250.0,4.943e-05]
[1760896238878,3.80006226,109260.0,109250.0,4.943e-05]
[1760896239093,4.66288098,109260.0,109250.0,4.943e-05]
[1760896239845,4.66288098,109260.0,109250.0,0.00039733]
[1760896240271,4.66188098,109260.0,109250.0,0.00039733]
[1760896241000,4.66288098,109260.0,109250.0,0.00039733]
[1760896241219,4.5116587,109260.0,109250.0,0.00039733]
[1760896241430,4.27812929,109260.0,109250.0,0.00039733]
[1760896241880,4.61812929,109260.0,109250.0,0.00039733]
[1760896242112,4.18621993,109260.0,109250.0,0.00039733]
[1760896242319,4.61712929,109260.0,109250.0,0.00039733]
[1760896242451,4.61711159,109260.0,109250.0,0.00039733]
[1760896242944,4.18520223,109260.0,109250.0,0.00039733]
[1760896243155,4.61711159,109260.0,109250.0,0.00039733]
[1760896243639,4.50207159,109260.0,109250.0,0.00039733]
[1760896243852,4.61711159,109260.0,109250.0,0.00039733]
[1760896244060,4.07016223,109260.0,109250.0,0.00039733]
[1760896244260,4.18520223,109260.0,109250.0,0.00039733]
[1760896244467,4.61711159,109260.0,109250.0,0.00039733]
[1760896245425,4.61711159,109260.0,109250.0,0.14829733]
[1760896246236,4.50207159,109260.0,109250.0,0.14829733]
[1760896246410,4.61711159,109260.0,109250.0,0.14829733]
[1760896247752,4.50207159,109260.0,109250.0,0.14829733]
[1760896247955,4.61711159,109260.0,109250.0,0.14829733]
[1760896249965,3.75329287,109260.0,109250.0,0.14829733]
[1760896250167,4.61711159,109260.0,109250.0,0.14829733]
[1760896254484,4.48495046,109260.0,109250.0,0.14829733]
[1760896256789,5.03189982,109260.0,109250.0,0.14829733]
[1760896256993,4.59999046,109260.0,109250.0,0.14829733]
[1760896257397,5.03189982,109260.0,109250.0,0.14829733]
[1760896257572,4.59999046,109260.0,109250.0,0.14829733]
[1760896258876,4.62176566,109260.0,109250.0,0.14829733]
[1760896259377,5.0708092,109260.0,109250.0,0.14829733]
[1760896259612,4.63889984,109260.0,109250.0,0.14829733]
[1760896260786,4.63889984,109260.0,109250.0,0.00039733]
[1760896261222,4.61712464,109260.0,109250.0,0.00039733]
[1760896261774,4.42734597,109260.0,109250.0,0.00039733]
[1760896263129,3.56352725,109260.0,109250.0,0.00039733]
[1760896263414,4.42734597,109260.0,109250.0,0.00039733]
[1760896263995,3.56352725,109260.0,109250.0,0.00039733]
[1760896264421,4.42734597,109260.0,109250.0,0.00039733]
[1760896266195,3.44848725,109260.0,109250.0,0.00039733]
[1760896266480,3.88041882,109260.0,109250.0,0.00039733]
[1760896266930,3.86326243,109260.0,109250.0,0.00039733]
[1760896270436,4.312342,109260.0,109250.0,0.00039733]
[1760896271042,3.88043264,109260.0,109250.0,0.00039733]
[1760896271238,4.312342,109260.0,109250.0,0.00039733]
[1760896273274,4.75283699,109260.0,109250.0,0.00039733]
[1760896273475,4.32092763,109260.0,109250.0,0.00039733]
[1760896274080,4.32252246,109260.0,109250.0,0.00039733]
[1760896274727,4.32092763,109260.0,109250.0,0.00039733]
[1760896276440,4.32092658,109260.0,109250.0,0.00039733]
[1760896278891,3.45710786,109260.0,109250.0,0.00039733]
[1760896279044,4.32092658,109260.0,109250.0,0.00039733]
[1760896280412,5.33977587,109260.0,109250.0,0.00039733]
[1760896280651,4.90786651,109260.0,109250.0,0.00039733]
[1760896280843,4.3574525,109260.0,109250.0,0.00039733]
[1760896281691,4.35904741,109260.0,109250.0,0.00039733]
[1760896285537,4.37340239,109260.0,109250.0,0.00039733]
[1760896285742,4.35904741,109260.0,109250.0,0.00039733]
[1760896286106,4.44727417,109260.0,109250.0,0.00039733]
[1760896286929,4.35904741,109260.0,109250.0,0.00039733]
[1760896292719,4.19787072,109260.0,109250.0,0.00039733]
[1760896292926,2.94894045,109260.0,109250.0,0.00039733]
[1760896293129,3.06030919,109260.0,109250.0,0.00039733]
[1760896293327,3.49079546,109260.0,109250.0,0.00039733]
[1760896293505,3.83079546,109260.0,109250.0,0.00039733]
[1760896294241,3.83078282,109260.0,109250.0,0.00039733]
[1760896294540,3.8136263,109260.0,109250.0,0.00039733]
[1760896296579,3.6985863,109260.0,109250.0,0.00039733]
[1760896296777,3.8135863,109260.0,109250.0,0.00039733]
[1760896298867,4.26282355,109260.0,109250.0,0.00039733]
[1760896299077,4.35722997,109260.0,109250.0,0.00039733]
[1760896299290,4.31108554,109260.0,109250.0,0.00039733]
[1760896299496,4.30758435,109260.0,109250.0,0.00039733]
[1760896299645,4.29900583,109260.0,109250.0,0.00039733]
[1760896300054,3.43484347,109260.0,109250.0,0.00039733]
[1760896300256,4.29900583,109260.0,109250.0,0.00039733]
[1760896300687,4.14782355,109260.0,109250.0,0.00039733]
[1760896301038,3.8323372,109260.0,109250.0,0.00039733]
[1760896301969,4.26441838,109260.0,109250.0,0.00039733]
[1760896302090,3.8323372,109260.0,109250.0,0.00039733]
[1760896302492,3.83074237,109260.0,109250.0,0.00039733]
[1760896302960,4.26282355,109260.0,109250.0,0.00039733]
[1760896303619,4.05893992,109260.0,109250.0,0.00039733]
[1760896307010,3.62685874,109260.0,109250.0,0.00039733]
[1760896307211,4.05893992,109260.0,109250.0,0.00039733]
[1760896308002,3.62685874,109260.0,109250.0,0.00039733]
[1760896308194,4.06053477,109260.0,109250.0,0.00039733]
[1760896308624,4.05893992,109260.0,109250.0,0.00039733]
[1760896312363,4.06053477,109260.0,109250.0,0.00039733]
[1760896315411,3.19637241,109260.0,109250.0,0.00039733]
[1760896315582,4.06053477,109260.0,109250.0,0.00039733]
[1760896315934,4.05893992,109260.0,109250.0,0.00039733]
[1760896316122,3.6354415,109260.0,109250.0,0.00039733]
[1760896316303,4.06752268,109260.0,109250.0,0.00039733]
[1760896317038,3.6354415,109260.0,109250.0,0.00039733]
[1760896317583,4.06752268,109260.0,109250.0,0.00039733]
[1760896317991,3.6354415,109260.0,109250.0,0.00039733]
[1760896318624,4.06752268,109260.0,109250.0,0.00039733]
[1760896319167,3.6354415,109260.0,109250.0,0.00039733]
[1760896319655,3.20336032,109260.0,109250.0,0.00039733]
[1760896319886,4.06752268,109260.0,109250.0,0.00039733]
[1760896320016,3.6354415,109260.0,109250.0,0.00039733]
[1760896320425,4.06752268,109260.0,109250.0,0.00039733]
[1760896321073,3.6354415,109260.0,109250.0,0.00039733]
[1760896321277,4.06753694,109260.0,109250.0,0.00039733]
[1760896321626,4.06753694,109260.0,109250.0,0.14829733]
[1760896323067,3.63545576,109260.0,109250.0,0.14829733]
[1760896323263,4.06753694,109260.0,109250.0,0.14829733]
[1760896323909,3.87553854,109260.0,109250.0,0.14829733]
[1760896324217,3.44345736,109260.0,109250.0,0.14829733]
[1760896324438,3.87553854,109260.0,109250.0,0.14829733]
[1760896325064,3.44345736,109260.0,109250.0,0.14829733]
[1760896325264,3.87553854,109260.0,109250.0,0.14829733]
[1760896326246,3.44345736,109260.0,109250.0,0.14829733]
[1760896326440,3.87553854,109260.0,109250.0,0.14829733]
[1760896327077,3.44345736,109260.0,109250.0,0.14829733]
[1760896327442,3.87553854,109260.0,109250.0,0.14829733]
[1760896328055,3.44345736,109260.0,109250.0,0.14829733]
[1760896328478,3.87553854,109260.0,109250.0,0.14829733]
[1760896331307,3.87554459,109260.0,109250.0,0.14829733]
[1760896331710,3.91172687,109260.0,109250.0,0.00039733]
[1760896332516,3.93925843,109260.0,109250.0,0.00039733]
[1760896332935,3.91172687,109260.0,109250.0,0.00039733]
[1760896333146,3.47964569,109260.0,109250.0,0.00039733]
[1760896333355,3.91172687,109260.0,109250.0,0.00039733]
[1760896334871,3.04756451,109260.0,109250.0,0.00039733]
[1760896335076,3.47964569,109260.0,109250.0,0.00039733]
[1760896335476,3.91172687,109260.0,109250.0,0.00039733]
[1760896336101,3.47964569,109260.0,109250.0,0.00039733]
[1760896336337,3.91172687,109260.0,109250.0,0.00039733]
[1760896337649,3.44346341,109260.0,109250.0,0.00039733]
[1760896338287,3.87554459,109260.0,109250.0,0.00039733]
[1760896341213,3.87713949,109260.0,109250.0,0.00039733]
[1760896342149,3.87713949,109260.0,109250.0,0.14829733]
[1760896342743,4.30913232,109260.0,109250.0,0.14829733]
[1760896342944,3.87708059,109260.0,109250.0,0.14829733]
[1760896343354,4.30913232,109260.0,109250.0,0.14829733]
[1760896343977,3.87708059,109260.0,109250.0,0.14829733]
[1760896344402,4.30913232,109260.0,109250.0,0.14829733]
[1760896344618,3.01297713,109260.0,109250.0,0.14829733]
[1760896344772,4.30913232,109260.0,109250.0,0.14829733]
[1760896345112,3.87708059,109260.0,109250.0,0.14808033]
[1760896345437,4.30913232,109260.0,109250.0,0.14808033]
[1760896346012,3.87708059,109260.0,109250.0,0.14808033]
[1760896346335,4.30913232,109260.0,109250.0,0.14808033]
[1760896347078,3.87708059,109260.0,109250.0,0.14808033]
[1760896347286,4.30913232,109260.0,109250.0,0.14808033]
[1760896348130,3.87708059,109260.0,109250.0,0.14808033]
[1760896348341,4.30913232,109260.0,109250.0,0.14808033]
[1760896348953,3.87708059,109260.0,109250.0,0.14808033]
[1760896349400,4.30913232,109260.0,109250.0,0.14808033]
[1760896349962,3.87708059,109260.0,109250.0,0.14808033]
[1760896350165,3.90460803,109260.0,109250.0,0.14808033]
[1760896350361,4.33665976,109260.0,109250.0,0.14808033]
[1760896351004,3.90460803,109260.0,109250.0,0.14808033]
[1760896351583,4.33665976,109260.0,109250.0,0.14808033]
[1760896351863,4.42531257,109260.0,109250.0,0.14808033]
[1760896352087,4.42371767,109260.0,109250.0,0.14808033]
[1760896352512,4.39528708,109260.0,109250.0,0.14808033]
[1760896352950,4.37124714,109260.0,109250.0,0.14808033]
[1760896353167,3.93919541,109260.0,109250.0,0.14808033]
[1760896353379,4.37124714,109260.0,109250.0,0.14808033]
[1760896354026,3.93919541,109260.0,109250.0,0.00018033]
[1760896354241,4.03360183,109260.0,109250.0,0.00018033]
[1760896354471,4.46565356,109260.0,109250.0,0.00018033]
[1760896356179,4.03360183,109260.0,109250.0,0.00018033]
[1760896356388,4.46724852,109260.0,109250.0,0.00018033]
[1760896356808,4.37284999,109260.0,109250.0,0.00018033]
[1760896357009,3.94079826,109260.0,109250.0,0.00018033]
[1760896357369,4.37284999,109260.0,109250.0,0.00018033]
[1760896357565,3.78961598,109260.0,109250.0,0.00018033]
[1760896357756,3.78102717,109260.0,109250.0,0.00018033]
[1760896357961,2.25316261,109260.0,109250.0,0.73437957]
[1760896358168,2.25316261,109260.0,109250.0,0.73029842]
[1760896358374,2.25316261,109280.0,109270.0,0.18303285]
[1760896358588,2.27412543,109280.0,109270.0,0.18711334]
[1760896358799,0.02096282,109280.0,109270.0,0.18303285]
[1760896358994,0.73155952,109290.0,109270.0,0.1880285]
[1760896359207,3.1830161,109280.0,109270.0,0.1880285]
[1760896359441,0.5230161,109280.0,109270.0,0.1880285]
[1760896359645,0.5230161,109280.0,109270.0,0.00499565]
[1760896359856,3.18303285,109270.0,109250.0,0.1924]
[1760896360101,3.0,109260.0,109250.0,0.1924]
[1760896360292,3.0,109260.0,109250.0,0.73953173]
[1760896360511,0.52303285,109270.0,109260.0,0.18304462]
[1760896360714,0.52303285,109270.0,109250.0,0.74053173]
[1760896361142,0.52303285,109270.0,109250.0,0.73953173]
[1760896361505,0.52303285,109270.0,109260.0,0.1830496]
[1760896362811,0.52303285,109270.0,109260.0,0.1840496]
[1760896363155,0.52303285,109270.0,109260.0,0.001]
[1760896363796,0.52303285,109270.0,109260.0,0.002]
[1760896364335,0.95508458,109270.0,109260.0,0.002]
[1760896364534,0.52303285,109270.0,109260.0,0.002]
[1760896365534,0.52303285,109270.0,109260.0,0.1499]
[1760896366037,0.95508458,109270.0,109260.0,0.1499]
[1760896366230,0.95508458,109270.0,109260.0,0.26498]
[1760896367163,0.52303285,109270.0,109260.0,0.26498]
[1760896367367,0.95508458,109270.0,109260.0,0.26498]
[1760896367974,4.38713631,109270.0,109260.0,0.1499]
[1760896368183,4.16931893,109270.0,109260.0,0.1499]
[1760896368394,4.60137066,109270.0,109260.0,0.1499]
[1760896368832,4.65465745,109270.0,109260.0,0.001]
[1760896369052,4.68218337,109270.0,109260.0,0.001]
[1760896369264,3.1830496,109260.0,109250.0,0.00018033]
[1760896369482,4.14156394,109260.0,109250.0,0.00018033]
[1760896369910,3.27746048,109260.0,109250.0,0.00018033]
[1760896370113,0.70951221,109260.0,109250.0,0.00018033]
[1760896371787,0.27746048,109260.0,109250.0,0.00018033]
[1760896371994,0.70951221,109260.0,109250.0,0.00018033]
[1760896372215,0.27746048,109260.0,109250.0,0.00018033]
[1760896372422,0.61746048,109260.0,109250.0,0.00409518]
[1760896372752,1.04951221,109260.0,109250.0,0.00409518]
[1760896372954,0.61746048,109260.0,109250.0,0.00409518]
[1760896373160,0.5230496,109260.0,109250.0,0.18716154]
[1760896373355,0.34,109260.0,109250.0,0.73437327]
[1760896373576,3.0,109260.0,109250.0,0.73045842]
[1760896373790,3.34,109260.0,109250.0,0.29840669]
[1760896373982,0.34,109260.0,109250.0,0.29840669]
[1760896374524,0.34,109260.0,109250.0,0.44730669]
[1760896375931,0.00478347,109270.0,109260.0,0.1830496]
[1760896376133,0.34,109270.0,109260.0,0.33575133]
[1760896376333,0.20360351,109280.0,109260.0,0.3309496]
[1760896376604,0.54360351,109280.0,109270.0,0.00479355]
[1760896376807,0.54360351,109280.0,109270.0,0.1878264]
[1760896378246,0.54360351,109280.0,109270.0,0.00479355]
[1760896378457,0.54360351,109280.0,109260.0,0.3319496]
[1760896378859,0.54360351,109280.0,109260.0,0.3309496]
[1760896379297,0.54360351,109280.0,109270.0,0.001]
[1760896379515,0.54360351,109280.0,109260.0,0.76300133]
[1760896379745,0.54360351,109280.0,109260.0,0.76400133]
[1760896379952,0.54360351,109280.0,109270.0,0.29823285]
[1760896380513,0.00142819,109290.0,109270.0,0.29823285]
[1760896380714,0.00142819,109290.0,109280.0,0.61506783]
[1760896380924,0.34142819,109290.0,109280.0,0.61506783]
[1760896381164,0.00142819,109290.0,109280.0,0.1830161]
[1760896381299,0.00142819,109290.0,109280.0,0.2982561]
[1760896381494,0.00142819,109290.0,109280.0,0.2982961]
[1760896381757,0.00142819,109290.0,109280.0,0.73034783]
[1760896381961,0.00142819,109290.0,109280.0,1.42582246]
[1760896382417,0.00142819,109290.0,109280.0,1.31410474]
[1760896382816,0.00142819,109290.0,109280.0,0.95010934]
[1760896383022,0.00142819,109290.0,109280.0,1.44021741]
[1760896383201,0.00142819,109290.0,109280.0,0.95010934]
[1760896383408,0.00142819,109290.0,109280.0,1.44221741]
[1760896383846,0.00142819,109290.0,109280.0,0.95210934]
[1760896384622,0.00142819,109290.0,109280.0,0.95410934]
[1760896385722,0.00142819,109290.0,109280.0,0.46400127]
[1760896385955,0.00142819,109290.0,109280.0,0.95410934]
[1760896386120,0.00142819,109290.0,109280.0,0.61190127]
[1760896386400,0.00142819,109290.0,109280.0,1.10200934]
[1760896387429,0.00142819,109290.0,109280.0,1.29410934]
[1760896387648,0.00142819,109290.0,109280.0,1.7942174]
[1760896387852,1e-08,109290.0,109280.0,1.7942174]
[1760896388056,1e-08,109290.0,109280.0,2.1866174]
[1760896388261,3.0,109340.0,109330.0,0.1829324]
[1760896388470,3.0,109340.0,109330.0,0.2982924]
[1760896388671,0.52291567,109340.0,109330.0,0.11536]
[1760896389527,0.52340877,109340.0,109330.0,0.11536]
[1760896389698,1.01451684,109340.0,109330.0,0.11536]
[1760896390427,0.52340877,109340.0,109330.0,0.11536]
[1760896390955,0.52340877,109340.0,109330.0,0.11636]
[1760896391155,0.54043252,109340.0,109330.0,0.11636]
[1760896391350,0.54043252,109340.0,109330.0,0.11536]
[1760896391533,0.52340877,109340.0,109330.0,0.11536]
[1760896392301,0.54042643,109340.0,109330.0,0.11536]
[1760896393094,0.5489327,109340.0,109330.0,0.11536]
[1760896393823,0.5489327,109340.0,109330.0,0.26325999]
[1760896394026,0.55083796,109340.0,109330.0,0.26325999]
[1760896394228,1.04094603,109340.0,109330.0,0.26321999]
[1760896395191,1.04094603,109340.0,109330.0,0.26221999]
[1760896395397,0.55083796,109340.0,109330.0,0.26221999]
[1760896395622,1.04094603,109340.0,109330.0,0.44515239]
[1760896395823,0.55083796,109340.0,109330.0,0.44515239]
[1760896396873,0.55083796,109340.0,109330.0,0.26221999]
[1760896397638,0.55083796,109340.0,109330.0,0.44515239]
[1760896398608,0.55083796,109340.0,109330.0,0.26221999]
[1760896399177,1.04094603,109340.0,109330.0,0.26221999]
[1760896399401,1.04094603,109340.0,109330.0,0.14689999]
[1760896399597,0.55083796,109340.0,109330.0,0.26221999]
[1760896399881,1.04094603,109340.0,109330.0,0.26221999]
[1760896400508,1.04094603,109340.0,109330.0,0.44515239]
[1760896400725,0.55083796,109340.0,109330.0,0.44515239]
[1760896402729,0.98204292,109340.0,109330.0,0.26221999]
[1760896403782,0.98204292,109340.0,109330.0,0.44515239]
[1760896404954,0.98204292,109340.0,109330.0,0.26221999]
[1760896408834,3.98204292,109340.0,109330.0,0.14689999]
[1760896408972,3.98204292,109340.0,109330.0,0.26213999]
[1760896409338,3.98204292,109340.0,109330.0,0.14689999]
[1760896410473,3.76044884,109340.0,109330.0,0.14689999]
[1760896410676,4.1964345,109340.0,109330.0,0.14689999]
[1760896410902,4.1965411,109340.0,109330.0,0.14689999]
[1760896412072,3.76533614,109340.0,109330.0,0.14689999]
[1760896412282,4.1965411,109340.0,109330.0,0.14689999]
[1760896412513,0.5229324,109330.0,109320.0,0.18995496]
[1760896412856,0.98132573,109330.0,109320.0,0.18995496]
[1760896413774,0.45839333,109330.0,109320.0,0.18995496]
[1760896415064,0.02718837,109330.0,109320.0,0.18995496]
[1760896417068,0.02718837,109330.0,109320.0,0.18394914]
[1760896417479,0.0186821,109330.0,109320.0,0.18394914]
[1760896418219,0.0186821,109330.0,109320.0,0.18494914]
[1760896418422,0.954615,109340.0,109330.0,0.3121503]
[1760896418735,0.9631902,109340.0,109330.0,0.4273903]
[1760896424129,0.96353769,109340.0,109330.0,0.4273903]
[1760896425529,0.96353769,109340.0,109330.0,0.2444579]
[1760896426136,4.05794857,109340.0,109330.0,0.1292179]
[1760896426334,1.05794857,109340.0,109330.0,0.1393129]
[1760896426543,0.96353769,109340.0,109330.0,0.3121503]
[1760896426743,0.96353769,109340.0,109330.0,0.1292179]
[1760896428062,0.53233273,109340.0,109330.0,0.1292179]
[1760896428236,0.96353769,109340.0,109330.0,0.1292179]
[1760896428467,0.53233273,109340.0,109330.0,0.31880377]
[1760896428618,0.96353769,109340.0,109330.0,0.3121503]
[1760896430432,0.9806861,109340.0,109330.0,0.3121503]
[1760896432063,0.9721109,109340.0,109330.0,0.3121503]
[1760896432267,0.9721109,109340.0,109330.0,0.1292179]
[1760896432588,0.95496249,109340.0,109330.0,0.3121503]
[1760896439329,0.95496249,109340.0,109330.0,0.1292179]
[1760896440078,0.75835273,109340.0,109330.0,0.1292179]
[1760896440265,0.61446939,109340.0,109330.0,0.1292179]
[1760896442104,0.61446939,109340.0,109330.0,0.3121503]
[1760896442512,0.61446939,109340.0,109330.0,0.1292179]
[1760896442965,0.61446939,109340.0,109330.0,0.3121503]
[1760896443376,0.61446939,109340.0,109330.0,0.1292179]
[1760896443991,0.18326443,109340.0,109330.0,0.1292179]
[1760896444210,0.18326443,109340.0,109330.0,0.3121503]
[1760896444421,0.61446939,109340.0,109330.0,0.3121503]
[1760896451287,0.43155245,109340.0,109330.0,0.3121503]
[1760896451504,0.61446812,109340.0,109330.0,0.3121503]
[1760896453769,0.61412063,109340.0,109330.0,0.3121503]
[1760896459800,0.61412063,109340.0,109330.0,0.1292179]
[1760896462682,1.04545815,109340.0,109330.0,0.3121503]
[1760896464035,0.18291567,109340.0,109330.0,0.3121503]
[1760896464257,1.04545815,109340.0,109330.0,0.3121503]
[1760896466253,0.86254248,109340.0,109330.0,0.3121503]
[1760896466475,0.18291567,109340.0,109330.0,0.3121503]
[1760896466639,0.9841442,109350.0,109340.0,0.18291567]
[1760896466839,0.98429206,109350.0,109340.0,0.30231006]
[1760896467067,0.97514528,109350.0,109340.0,0.2442579]
[1760896467289,0.97514528,109350.0,109340.0,0.42717357]
[1760896468669,0.97514528,109350.0,109340.0,0.2442579]
[1760896468907,0.80647368,109350.0,109340.0,0.2442579]
[1760896469972,0.5230468,109350.0,109340.0,0.2442579]
[1760896470201,0.95431804,109350.0,109340.0,0.2442579]
[1760896470630,0.97475797,109350.0,109340.0,0.2442579]
[1760896471541,0.97475797,109350.0,109340.0,0.2445539]
[1760896472085,0.97475797,109350.0,109340.0,0.42746957]
[1760896472290,0.00014786,109350.0,109340.0,0.85874081]
[1760896472496,0.0002,109360.0,109350.0,0.31162154]
[1760896472702,0.0002,109360.0,109350.0,0.74289278]
[1760896472924,0.00054739,109360.0,109350.0,0.74289278]
[1760896473343,0.00054739,109360.0,109350.0,0.31162154]
[1760896474161,0.00054739,109360.0,109350.0,0.83730366]
[1760896474294,0.00054739,109360.0,109350.0,0.70858106]
[1760896475157,0.43181863,109360.0,109350.0,0.18289894]
[1760896475509,0.61470085,109360.0,109350.0,0.29797894]
[1760896475875,0.61470085,109360.0,109350.0,0.29897894]
[1760896476036,0.61470085,109360.0,109350.0,0.29797894]
[1760896476494,0.61470085,109360.0,109350.0,0.29897894]
[1760896477236,1.04597209,109360.0,109350.0,0.001]
[1760896477438,1.04597209,109360.0,109350.0,0.11708]
[1760896477619,0.61470085,109360.0,109350.0,0.11708]
[1760896477832,0.43181863,109360.0,109350.0,0.29997894]
[1760896478017,0.61470085,109360.0,109350.0,0.29997894]
[1760896479940,0.61470085,109360.0,109350.0,0.42870154]
[1760896480519,0.61470085,109360.0,109350.0,0.2458026]
[1760896481485,0.61470085,109360.0,109350.0,0.42870154]
[1760896484444,0.43181863,109360.0,109350.0,0.42870154]
[1760896485191,0.61470085,109360.0,109350.0,0.42870154]
[1760896486569,0.61470085,109360.0,109350.0,0.2458026]
[1760896486791,0.61470085,109360.0,109350.0,0.42870154]
[1760896489931,4.38597209,109360.0,109350.0,0.1307226]
[1760896490145,4.50097209,109360.0,109350.0,0.1307226]
[1760896490352,4.52846882,109360.0,109350.0,0.1307226]
[1760896490733,4.41346882,109360.0,109350.0,0.1307226]
[1760896490937,4.52846882,109360.0,109350.0,0.1307226]
[1760896491309,4.52846882,109360.0,109350.0,0.1297226]
[1760896491697,4.52846882,109360.0,109350.0,0.1287226]
[1760896497389,5.05415094,109360.0,109350.0,0.1287226]
[1760896497742,4.6228797,109360.0,109350.0,0.1287226]
[1760896499433,5.05415094,109360.0,109350.0,0.1287226]
[1760896501218,0.52289894,109350.0,109340.0,0.000296]
[1760896501514,4.55801562,109350.0,109340.0,0.000296]
[1760896501820,4.64812946,109350.0,109340.0,0.000296]
[1760896502020,5.0794007,109350.0,109340.0,0.000296]
[1760896502361,5.0804007,109350.0,109340.0,0.000296]
[1760896502984,5.0814007,109350.0,109340.0,0.000296]
[1760896503505,5.11758298,109350.0,109340.0,0.000296]
[1760896506266,5.10901879,109350.0,109340.0,0.000296]
[1760896509123,5.11061233,109350.0,109340.0,0.000296]
[1760896511210,5.10901879,109350.0,109340.0,0.000296]
[1760896512354,5.11756238,109350.0,109340.0,0.000296]
[1760896513012,5.11760238,109350.0,109340.0,0.000296]
[1760896514656,5.11919591,109350.0,109340.0,0.000296]
[1760896514868,5.11760238,109350.0,109340.0,0.000296]
[1760896517840,5.1191959,109350.0,109340.0,0.000296]
[1760896522172,5.11760238,109350.0,109340.0,0.000296]
[1760896522723,4.68667358,109350.0,109340.0,0.000296]
[1760896523689,4.6882671,109350.0,109340.0,0.000296]
[1760896526138,4.6882671,109350.0,109310.0,0.13015009]
[1760896526139,0.52294914,109320.0,109310.0,0.13015009]
[1760896526474,4.49736948,109320.0,109310.0,0.13064319]
[1760896526821,4.52487708,109320.0,109310.0,0.13064319]
[1760896528309,4.52487708,109320.0,109310.0,0.00192059]
[1760896528720,4.53344841,109320.0,109310.0,0.00192059]
[1760896528927,4.57062808,109320.0,109310.0,0.00192059]
[1760896530297,4.57064644,109320.0,109310.0,0.00192059]
[1760896531560,4.57642853,109320.0,109310.0,0.00192059]
[1760896533215,4.14498607,109320.0,109310.0,0.00192059]
[1760896533432,4.23255847,109320.0,109310.0,0.00192059]
[1760896533647,4.66400093,109320.0,109310.0,0.00192059]
[1760896540865,4.66400093,109320.0,109310.0,0.13064319]
[1760896541096,4.46348972,109320.0,109310.0,0.13064319]
[1760896541340,4.64643886,109320.0,109310.0,0.13064319]
[1760896547451,4.63786753,109320.0,109310.0,0.13064319]
[1760896549741,4.63782753,109320.0,109310.0,0.13064319]
[1760896555847,4.6378421,109320.0,109310.0,0.13064319]
[1760896560271,4.64642497,109320.0,109310.0,0.13064319]
[1760896560658,4.64643324,109320.0,109310.0,0.13064319]
[1760896561483,4.67047318,109320.0,109310.0,0.13064319]
[1760896562328,4.67047318,109320.0,109310.0,0.00192059]
[1760896564068,4.7625969,109320.0,109310.0,0.00192059]
[1760896565174,4.44015897,109320.0,109310.0,0.00192059]
[1760896567292,4.78015897,109320.0,109310.0,0.00192059]
[1760896574081,4.75172838,109320.0,109310.0,0.00192059]
[1760896574493,4.72768844,109320.0,109310.0,0.00192059]
[1760896581119,4.75172838,109320.0,109310.0,0.00192059]
[1760896584856,5.18381356,109320.0,109310.0,0.00192059]
[1760896590078,3.0,109270.0,109250.0,0.1479]
[1760896590299,1.0463705,109260.0,109250.0,0.1479]
[1760896590507,0.65170664,109260.0,109250.0,0.1479]
[1760896591353,0.65170664,109260.0,109250.0,0.1489]
[1760896591681,0.65170664,109260.0,109250.0,0.1499]
[1760896591838,1.08336709,109260.0,109250.0,0.1499]
[1760896593262,1.08336709,109260.0,109250.0,0.002]
[1760896593467,1.42336709,109260.0,109250.0,0.1499]
[1760896595316,0.34,109260.0,109250.0,0.18506636]
[1760896595523,1.3863705,109260.0,109250.0,0.18506636]
[1760896596159,1.3863705,109260.0,109250.0,0.3354009]
[1760896596370,0.95471005,109260.0,109250.0,0.3354009]
[1760896596603,1.3863705,109260.0,109250.0,0.3354009]
[1760896598796,0.95471005,109260.0,109250.0,0.3354009]
[1760896598979,1.3863705,109260.0,109250.0,0.3354009]
[1760896599313,0.00049331,109270.0,109250.0,0.3354009]
[1760896599572,0.61518661,109270.0,109260.0,0.20135456]
[1760896599744,0.65295793,109270.0,109260.0,0.20135456]
[1760896599898,0.61518661,109270.0,109260.0,0.20135456]
[1760896600099,0.61518661,109270.0,109260.0,0.34925456]
[1760896600342,0.61518661,109270.0,109260.0,0.3309496]
[1760896600952,0.65175175,109270.0,109260.0,0.3309496]
[1760896602561,0.65175175,109270.0,109260.0,0.1479]
[1760896603283,0.65175175,109270.0,109260.0,0.3309496]
[1760896604215,0.65175175,109270.0,109260.0,0.1479]
[1760896604352,0.65175175,109270.0,109260.0,0.3309496]
[1760896604757,0.65175175,109270.0,109260.0,0.33303614]
[1760896604957,0.65175175,109270.0,109260.0,0.14998654]
[1760896605364,0.99175175,109270.0,109260.0,0.14998654]
[1760896615823,4.4234122,109270.0,109260.0,0.14998654]
[1760896618356,3.99175175,109270.0,109260.0,0.14998654]
[1760896627178,4.4234122,109270.0,109260.0,0.14998654]
[1760896628979,4.44055303,109270.0,109260.0,0.14998654]
[1760896632219,4.53496391,109270.0,109260.0,0.14998654]
[1760896632598,4.56248514,109270.0,109260.0,0.14998654]
[1760896633528,3.69916424,109270.0,109260.0,0.14998654]
[1760896633832,4.24590469,109270.0,109260.0,0.14998654]
[1760896637061,4.13082469,109270.0,109260.0,0.14998654]
[1760896637227,4.24590469,109270.0,109260.0,0.14998654]
[1760896637426,4.05551883,109270.0,109260.0,0.14998654]
[1760896637614,4.23855168,109270.0,109260.0,0.14998654]
[1760896639180,4.67021213,109270.0,109260.0,0.14998654]
[1760896639484,4.23855348,109270.0,109260.0,0.14998654]
[1760896639827,4.12347348,109270.0,109260.0,0.14998654]
[1760896640033,4.23855348,109270.0,109260.0,0.14998654]